bitfinex/quotes_SOLUSD_20240813
["timestamp","ask_amount","ask_price","bid_price","bid_amount"]
[1723557398805,30.5929,146.99,146.9,45.50196]
[1723557399005,30.5929,146.99,146.92,0.12549]
[1723557399217,30.5929,146.99,146.92,0.25098]
[1723557399393,30.5929,146.99,146.94,0.12549]
[1723557399722,30.5929,146.99,146.94,65.37647]
[1723557399893,32.29390386,146.99,146.95,0.12549]
[1723557400221,30.5929,146.99,146.96,0.12549]
[1723557400516,30.5929,146.99,146.95,0.25098]
[1723557401822,30.5929,146.99,146.96,0.25098]
[1723557401991,30.5929,146.99,146.97,0.25098]
[1723557402189,30.5929,146.99,146.98,0.25098]
[1723557402422,30.5929,146.99,146.98,0.50196]
[1723557404207,32.29387601,146.99,146.98,0.12549]
[1723557404404,30.5929,146.99,146.89,46.64]
[1723557404708,30.5929,146.99,146.9,20.0]
[1723557404906,1.7011125,146.98,146.9,20.0]
[1723557405322,1.7011125,146.98,146.89,20.0]
[1723557405820,30.5929,146.99,146.9,0.50196]
[1723557406194,30.5929,146.99,146.92,0.12549]
[1723557406395,30.5929,146.99,146.92,65.50196]
[1723557406711,30.5929,146.99,146.94,0.12549]
[1723557407115,30.5929,146.99,146.93,0.50196]
[1723557408026,30.5929,146.99,146.94,20.0]
[1723557408229,30.5929,146.99,146.95,45.50196]
[1723557408412,44.2695,147.05,146.97,0.12549]
[1723557408610,44.2695,147.05,146.98,20.0]
[1723557408832,44.2695,147.05,146.99,45.50196]
[1723557409026,44.2695,147.05,146.99,45.37647]
[1723557409330,44.2695,147.05,147.01,0.12549]
[1723557409498,44.2695,147.05,147.01,0.37647]
[1723557409695,999.87451,147.02,147.01,0.37647]
[1723557412004,999.87451,147.02,147.01,0.50196]
[1723557413305,950.84993381,147.02,147.01,0.50196]
[1723557413508,722.19903021,147.02,147.01,0.50196]
[1723557413924,711.27903021,147.02,147.01,0.50196]
[1723557415235,698.96903021,147.02,147.01,0.50196]
[1723557415930,490.95903021,147.02,147.01,3.26862225]
[1723557416121,490.95903021,147.02,147.01,0.50196]
[1723557416628,490.95903021,147.02,147.01,0.12549]
[1723557417833,490.95903021,147.02,147.01,0.25098]
[1723557418009,490.95903021,147.02,147.01,65.50196]
[1723557418325,460.95903021,147.02,147.01,85.50196]
[1723557418731,460.95903021,147.02,147.0,2.71576547]
[1723557419039,460.95903021,147.02,146.98,20.0]
[1723557419324,460.95903021,147.02,146.97,2.659153]
[1723557419636,460.95903021,147.02,146.99,20.0]
[1723557419799,445.06903021,147.02,147.0,20.0]
[1723557420000,445.06903021,147.02,147.01,20.0]
[1723557420204,442.46903021,147.02,147.01,48.42817256]
[1723557420419,442.46903021,147.02,147.01,48.67915256]
[1723557420623,442.46903021,147.02,147.01,93.93013256]
[1723557420825,407.82244814,147.02,147.01,93.93013256]
[1723557421041,189.21319214,147.02,147.01,93.93013256]
[1723557421212,168.79587306,147.02,147.01,93.93013256]
[1723557422240,101.39556038,147.02,147.01,136.69783256]
[1723557422408,97.61143028,147.02,147.01,141.5044166]
[1723557422803,76.15943028,147.02,147.01,144.20330258]
[1723557423110,55.75248915,147.02,147.01,144.20330258]
[1723557423512,35.34554802,147.02,147.01,144.20330258]
[1723557423735,18.47554802,147.02,147.01,144.20330258]
[1723557424128,1e-08,147.02,147.01,144.20330258]
[1723557425208,1e-08,147.02,147.01,139.39671854]
[1723557425411,31.0754,147.13,147.11,0.12549]
[1723557425616,42.6281,147.17,147.13,0.12549]
[1723557425811,42.6281,147.17,147.13,0.25098]
[1723557426223,30.0346,147.17,147.13,0.25098]
[1723557426405,31.4294,147.21,147.17,20.0]
[1723557426621,31.4294,147.21,147.18,45.12549]
[1723557426826,31.4294,147.21,147.19,0.12549]
[1723557427009,12.4653,147.25,147.19,0.25098]
[1723557427207,12.4653,147.25,147.21,0.12549]
[1723557427469,12.4653,147.25,147.21,0.25098]
[1723557427606,12.4653,147.25,147.22,0.25098]
[1723557427812,1.69819846,147.24,147.22,0.25098]
[1723557428027,12.4653,147.25,147.23,0.25098]
[1723557428230,14.16353166,147.25,147.24,0.12549]
[1723557428419,12.4653,147.25,147.24,0.25098]
[1723557428821,14.16353668,147.25,147.23,0.12549]
[1723557429140,14.16353668,147.25,147.18,65.0]
[1723557429438,46.68,147.23,147.1,20.0]
[1723557429738,46.68,147.23,147.12,40.0]
[1723557429928,1.6984208,147.22,147.13,20.0]
[1723557430129,12.4653,147.25,147.16,20.0]
[1723557430130,33.2396,147.24,147.16,20.0]
[1723557430440,33.2396,147.24,147.18,20.0]
[1723557430645,33.2396,147.24,147.19,45.12549]
[1723557430814,1.698142,147.23,147.19,0.12549]
[1723557431014,1.698142,147.23,147.2,0.25098]
[1723557431224,1.698142,147.23,147.2,0.12549]
[1723557431423,48.378142,147.23,147.1,2.66749815]
[1723557431619,46.68,147.23,147.14,20.0]
[1723557432125,72.0496,147.24,147.13,20.0]
[1723557432451,33.2396,147.24,147.17,20.0]
[1723557432745,33.2396,147.24,147.15,20.0]
[1723557432953,33.2396,147.24,147.17,20.0]
[1723557433125,33.2396,147.24,147.18,65.37647]
[1723557433320,34.9377937,147.24,147.2,0.12549]
[1723557433527,33.2396,147.24,147.2,0.12549]
[1723557433749,33.2396,147.24,147.22,0.12549]
[1723557434054,31.513,147.28,147.22,45.50196]
[1723557434219,31.513,147.28,147.22,0.50196]
[1723557434420,31.513,147.28,147.22,20.50196]
[1723557434644,31.513,147.28,147.24,0.12549]
[1723557434853,31.513,147.28,147.24,0.50196]
[1723557436536,33.21059175,147.28,147.24,0.50196]
[1723557436732,72.02059175,147.28,147.22,20.0]
[1723557436954,72.02059175,147.28,147.16,42.65997313]
[1723557436955,72.02059175,147.28,147.17,20.0]
[1723557437225,72.02059175,147.28,147.18,45.0]
[1723557437476,72.02059175,147.28,147.19,20.0]
[1723557437625,72.02059175,147.28,147.17,20.0]
[1723557437826,38.81,147.25,147.14,2.71371415]
[1723557438027,38.81,147.25,147.17,20.0]
[1723557438226,70.323,147.28,147.17,20.0]
[1723557438428,72.02104782,147.28,147.15,40.0]
[1723557438639,33.21104782,147.28,147.15,40.0]
[1723557438858,38.81,147.27,147.15,40.0]
[1723557439037,1.6980486,147.26,147.16,65.50196]
[1723557439568,38.81,147.27,147.16,65.50196]
[1723557439921,40.5081465,147.27,147.2,0.12549]
[1723557440145,40.5081465,147.27,147.26,0.37647]
[1723557440348,40.5081465,147.27,147.26,0.50196]
[1723557440561,40.50798304,147.27,147.18,20.0]
[1723557440734,1.69822308,147.26,147.16,0.12549]
[1723557441051,1.6982047,147.26,147.15,20.0]
[1723557441250,38.81,147.24,147.13,20.0]
[1723557442237,38.81,147.24,147.14,40.0]
[1723557442429,12.7539,147.23,147.16,0.12549]
[1723557442628,12.7539,147.23,147.16,45.50196]
[1723557442848,1.6984324,147.22,147.18,0.12549]
[1723557443051,1.6984324,147.22,147.18,0.50196]
[1723557443425,12.7539,147.23,147.18,0.50196]
[1723557443936,12.7539,147.23,147.18,20.50196]
[1723557444251,12.7539,147.23,147.2,0.12549]
[1723557444554,12.3501,147.27,147.2,20.50196]
[1723557444758,12.3501,147.27,147.22,0.12549]
[1723557444968,12.3501,147.27,147.22,20.50196]
[1723557445257,12.3501,147.27,147.22,0.50196]
[1723557445758,12.3501,147.27,147.22,20.50196]
[1723557445962,12.3501,147.27,147.24,0.12549]
[1723557446260,12.3501,147.27,147.24,0.50196]
[1723557447135,12.3501,147.27,147.24,20.50196]
[1723557447756,22.61426348,147.33,147.24,20.50196]
[1723557448039,22.61426348,147.33,147.25,20.0]
[1723557448340,22.61426348,147.33,147.26,45.50196]
[1723557448537,22.61426348,147.33,147.26,0.50196]
[1723557448740,1.69743101,147.35,147.26,0.50196]
[1723557448741,38.81,147.3,147.26,0.50196]
[1723557448944,1.69776209,147.29,147.21,40.0]
[1723557449140,38.81,147.3,147.21,40.0]
[1723557449442,1.69777709,147.29,147.21,40.0]
[1723557449641,38.81,147.3,147.21,20.0]
[1723557449862,38.81,147.3,147.19,20.0]
[1723557450554,38.81,147.3,147.2,20.0]
[1723557451062,43.7942,147.29,147.2,20.0]
[1723557451237,43.7942,147.29,147.21,45.0]
[1723557451432,43.7942,147.29,147.23,0.12549]
[1723557451660,43.7942,147.29,147.23,0.50196]
[1723557451833,43.7942,147.29,147.23,45.50196]
[1723557452760,45.7888,147.33,147.25,0.12549]
[1723557453063,45.7888,147.33,147.25,45.37647]
[1723557453235,45.7888,147.33,147.27,0.12549]
[1723557453439,47.48632531,147.33,147.27,0.37647]
[1723557453637,45.7888,147.33,147.28,0.12549]
[1723557453857,38.81,147.38,147.29,0.12549]
[1723557454063,43.9044,147.37,147.29,20.37647]
[1723557454267,45.60135432,147.37,147.31,0.12549]
[1723557454570,45.60135432,147.37,147.31,0.37647]
[1723557454753,43.9044,147.37,147.32,0.12549]
[1723557454939,43.9044,147.37,147.33,0.12549]
[1723557455136,43.9044,147.37,147.33,0.37647]
[1723557455337,31.2795,147.37,147.34,0.12549]
[1723557455568,0.8414149,147.39,147.35,0.12549]
[1723557455772,0.8414149,147.39,147.35,0.25098]
[1723557455955,0.8414149,147.39,147.37,0.12549]
[1723557456159,0.8414149,147.39,147.37,0.25098]
[1723557456372,0.8414149,147.39,147.38,0.37647]
[1723557456868,0.8414149,147.39,147.38,0.50196]
[1723557459168,0.8414149,147.39,147.38,20.50196]
[1723557459374,0.8414149,147.39,147.38,65.50196]
[1723557460043,0.8414149,147.39,147.35,20.0]
[1723557460246,0.8414149,147.39,147.36,45.0]
[1723557460572,0.8414149,147.39,147.36,65.0]
[1723557461253,0.8414149,147.39,147.37,0.12549]
[1723557461572,0.8414149,147.39,147.38,20.0]
[1723557461768,0.8414149,147.39,147.38,45.25098]
[1723557461944,0.8414149,147.39,147.38,65.25098]
[1723557462144,0.8414149,147.39,147.38,20.12549]
[1723557462567,0.8414149,147.39,147.38,0.12549]
[1723557463367,0.8414149,147.39,147.38,65.12549]
[1723557463552,0.8414149,147.39,147.38,65.25098]
[1723557463754,0.8414149,147.39,147.38,65.50196]
[1723557464163,0.8414149,147.39,147.38,20.50196]
[1723557464363,0.8414149,147.39,147.3,38.81]
[1723557464568,0.8414149,147.39,147.32,20.0]
[1723557464948,0.8414149,147.39,147.3,67.23817256]
[1723557465149,0.8414149,147.39,147.3,47.23817256]
[1723557465370,0.8414149,147.39,147.29,13.0357]
[1723557465675,39.6514149,147.39,147.29,15.69848912]
[1723557465861,0.8414149,147.39,147.29,15.69848912]
[1723557466047,0.8414149,147.39,147.29,2.66278912]
[1723557466243,0.8414149,147.39,147.29,20.0]
[1723557466446,39.6514149,147.39,147.27,40.0]
[1723557466673,39.6514149,147.39,147.28,20.0]
[1723557468359,39.6514149,147.39,147.3,20.0]
[1723557468557,39.6514149,147.39,147.31,20.0]
[1723557468769,39.6514149,147.39,147.28,20.0]
[1723557468967,13.0851,147.37,147.26,20.0]
[1723557469175,71.83560998,147.36,147.25,21.51837256]
[1723557469382,38.81,147.34,147.24,2.67510238]
[1723557469552,38.81,147.32,147.2,21.68397256]
[1723557469750,12.8588,147.3,147.2,8.42817256]
[1723557470082,1.6977438,147.29,147.19,7.08964595]
[1723557470382,1.6977438,147.29,147.19,9.84651172]
[1723557470588,51.6688,147.3,147.19,29.84651172]
[1723557470757,1.69777345,147.29,147.19,29.84651172]
[1723557470953,31.3709,147.28,147.19,9.84651172]
[1723557471156,31.3709,147.28,147.19,22.75686577]
[1723557471380,31.3709,147.28,147.19,29.85375729]
[1723557471975,31.3709,147.28,147.21,20.0]
[1723557472155,31.3709,147.28,147.23,20.0]
[1723557472365,31.3709,147.28,147.25,0.12549]
[1723557472575,31.3709,147.28,147.25,0.37647]
[1723557472878,31.3709,147.28,147.26,0.12549]
[1723557473078,31.3709,147.28,147.27,0.12549]
[1723557473284,31.3709,147.28,147.25,20.0]
[1723557473489,31.3709,147.28,147.21,20.0]
[1723557473855,31.3709,147.28,147.19,9.85375729]
[1723557473856,1.69772544,147.27,147.19,9.85375729]
[1723557474056,1.69803937,147.26,147.16,33.2558]
[1723557474463,1.69803937,147.26,147.17,7.09727967]
[1723557474858,70.1809,147.28,147.18,20.0]
[1723557475081,70.1809,147.28,147.17,7.09727967]
[1723557475082,31.3709,147.28,147.17,35.52545223]
[1723557475284,31.3709,147.28,147.18,20.0]
[1723557475472,38.81,147.27,147.17,7.09727967]
[1723557475667,38.81,147.27,147.16,2.6880656]
[1723557475883,38.81,147.27,147.15,20.0]
[1723557476371,38.81,147.27,147.15,40.0]
[1723557476590,1.69811253,147.26,147.15,20.0]
[1723557476761,1.69811253,147.26,147.16,45.50196]
[1723557477260,1.69811253,147.26,147.18,0.12549]
[1723557477470,1.69811253,147.26,147.18,45.0]
[1723557477686,38.81,147.27,147.17,20.0]
[1723557477987,38.81,147.27,147.15,20.0]
[1723557478986,31.3709,147.28,147.16,20.50196]
[1723557479291,31.3709,147.28,147.2,0.12549]
[1723557479467,31.3709,147.28,147.22,0.12549]
[1723557479665,31.3709,147.28,147.22,0.50196]
[1723557479867,31.3709,147.28,147.22,45.50196]
[1723557480069,31.3709,147.28,147.24,0.12549]
[1723557480272,12.8588,147.3,147.25,20.0]
[1723557480491,12.8588,147.3,147.26,0.50196]
[1723557480665,12.8588,147.3,147.26,45.50196]
[1723557481080,12.8588,147.3,147.26,0.50196]
[1723557481461,12.8588,147.3,147.26,20.50196]
[1723557481663,12.8588,147.3,147.26,0.50196]
[1723557482368,12.8588,147.3,147.21,20.0]
[1723557482369,1.69770077,147.29,147.21,20.0]
[1723557482572,1.69770077,147.29,147.18,20.0]
[1723557482770,1.69770077,147.29,147.17,20.0]
[1723557482771,38.81,147.28,147.15,20.0]
[1723557482988,1.69807515,147.27,147.15,20.0]
[1723557483166,38.81,147.28,147.15,20.0]
[1723557483372,1.69815407,147.27,147.15,20.0]
[1723557483896,38.81,147.28,147.17,20.0]
[1723557484071,38.81,147.26,147.15,20.0]
[1723557484267,31.6017,147.27,147.17,20.0]
[1723557484570,31.6017,147.27,147.2,20.0]
[1723557484873,31.6017,147.27,147.18,20.0]
[1723557485198,31.6017,147.27,147.19,20.0]
[1723557485373,31.6017,147.27,147.19,65.0]
[1723557485775,12.8588,147.3,147.24,20.0]
[1723557486093,12.8588,147.3,147.25,53.67915256]
[1723557486264,31.8226,147.32,147.26,21.23247129]
[1723557486473,31.8226,147.32,147.27,0.25098]
[1723557486687,12.4392,147.34,147.3,0.12549]
[1723557486887,45.267,147.38,147.3,20.50196]
[1723557487091,45.267,147.38,147.31,65.0]
[1723557487394,45.267,147.38,147.32,20.50196]
[1723557487583,45.267,147.38,147.34,0.12549]
[1723557487776,45.267,147.38,147.34,0.50196]
[1723557488792,1.69692573,147.37,147.34,0.50196]
[1723557489098,84.077,147.38,147.34,0.37647]
[1723557489691,84.077,147.38,147.35,0.12549]
[1723557489894,1.69695951,147.37,147.35,0.12549]
[1723557490100,1.69695951,147.37,147.34,0.25098]
[1723557490267,84.077,147.38,147.34,0.25098]
[1723557490469,38.81,147.36,147.34,0.25098]
[1723557490876,38.81,147.36,147.25,0.12549]
[1723557491070,38.81,147.36,147.25,45.50196]
[1723557491291,38.81,147.36,147.27,0.12549]
[1723557491488,38.81,147.36,147.27,45.50196]
[1723557491693,84.077,147.38,147.29,0.12549]
[1723557491886,84.077,147.38,147.29,0.50196]
[1723557492196,38.81,147.36,147.29,0.50196]
[1723557492503,38.81,147.34,147.23,8.42817256]
[1723557492872,38.81,147.32,147.23,8.42817256]
[1723557493071,38.81,147.34,147.23,8.42817256]
[1723557493581,38.81,147.3,147.23,8.42817256]
[1723557493786,30.5003,147.33,147.23,8.42817256]
[1723557493989,30.5003,147.33,147.24,20.0]
[1723557494182,30.5003,147.33,147.26,20.0]
[1723557494497,42.9395,147.38,147.28,20.0]
[1723557494671,42.9395,147.38,147.29,20.0]
[1723557494877,42.9395,147.38,147.3,0.25098]
[1723557495179,42.9395,147.38,147.31,0.37647]
[1723557495392,42.9395,147.38,147.32,0.12549]
[1723557495699,42.9395,147.38,147.33,0.12549]
[1723557495872,42.9395,147.38,147.33,0.37647]
[1723557496067,42.9395,147.38,147.34,0.12549]
[1723557496302,30.5003,147.38,147.34,0.12549]
[1723557496474,0.8414149,147.39,147.35,0.12549]
[1723557496791,0.8414149,147.39,147.35,65.37647]
[1723557497005,0.8414149,147.39,147.36,0.12549]
[1723557497172,0.8414149,147.39,147.37,0.12549]
[1723557497378,0.8414149,147.39,147.37,0.25098]
[1723557497701,0.8414149,147.39,147.38,0.37647]
[1723557498014,0.8414149,147.39,147.38,0.50196]
[1723557498914,0.8414149,147.39,147.38,65.50196]
[1723557499411,0.8414149,147.39,147.38,85.50196]
[1723557499915,0.8414149,147.39,147.38,65.50196]
[1723557500607,30.197,147.47,147.39,0.12549]
[1723557500910,30.197,147.47,147.39,20.37647]
[1723557501112,30.197,147.47,147.41,0.12549]
[1723557501316,30.197,147.47,147.41,20.37647]
[1723557501484,51.0019,147.5,147.43,0.12549]
[1723557501691,12.1919,147.5,147.43,40.90469789]
[1723557501906,12.1919,147.5,147.45,0.12549]
[1723557502217,51.0019,147.5,147.45,0.12549]
[1723557502386,51.0019,147.5,147.45,0.37647]
[1723557502586,52.69737384,147.5,147.46,0.12549]
[1723557502886,52.69737384,147.5,147.46,0.37647]
[1723557503688,38.81,147.48,147.39,20.0]
[1723557503916,38.81,147.43,147.32,24.80658404]
[1723557504218,38.81,147.43,147.32,22.67962224]
[1723557504684,38.81,147.43,147.33,30.0]
[1723557504887,1.69604064,147.42,147.32,20.0]
[1723557505085,38.81,147.43,147.33,20.0]
[1723557505316,32.2332,147.49,147.39,40.0]
[1723557505491,12.3185,147.5,147.41,40.0]
[1723557505687,69.4311,147.53,147.42,9.15039478]
[1723557506015,69.4311,147.53,147.44,0.12549]
[1723557506357,30.6211,147.53,147.44,20.25098]
[1723557506517,77.0011,147.53,147.46,0.12549]
[1723557506830,77.0011,147.53,147.46,0.25098]
[1723557507005,46.38,147.5,147.47,0.12549]
[1723557507209,46.38,147.5,147.46,0.12549]
[1723557508429,46.38,147.5,147.36,20.0]
[1723557508430,53.16,147.5,147.36,20.0]
[1723557508608,46.38,147.5,147.37,45.0]
[1723557508808,46.38,147.5,147.38,20.0]
[1723557509117,46.38,147.5,147.39,45.0]
[1723557509331,46.38,147.5,147.4,20.0]
[1723557509642,46.38,147.47,147.4,20.0]
[1723557509810,46.38,147.47,147.41,0.37647]
[1723557510512,12.8614,147.46,147.35,12.8048]
[1723557510834,12.8614,147.46,147.36,20.0]
[1723557511337,32.7975,147.45,147.35,12.8048]
[1723557511840,32.7975,147.45,147.36,0.12549]
[1723557512142,32.7975,147.45,147.36,9.52686478]
[1723557512638,32.7975,147.45,147.38,0.12549]
[1723557512840,79.1775,147.49,147.4,0.12549]
[1723557513015,32.7975,147.49,147.4,29.65235478]
[1723557513211,32.7975,147.49,147.42,0.12549]
[1723557513443,32.7975,147.49,147.42,0.25098]
[1723557513639,79.1775,147.49,147.44,0.12549]
[1723557513851,79.1775,147.49,147.44,0.25098]
[1723557514013,79.1775,147.49,147.46,0.12549]
[1723557514436,79.1775,147.49,147.45,0.25098]
[1723557514636,79.1775,147.49,147.46,0.12549]
[1723557514816,32.7975,147.49,147.46,0.25098]
[1723557515009,32.7975,147.49,147.47,0.12549]
[1723557515230,32.7975,147.49,147.46,0.12549]
[1723557515231,1.69568765,147.48,147.46,0.12549]
[1723557515436,1.69568765,147.48,147.45,0.25098]
[1723557516124,79.1775,147.49,147.44,0.12549]
[1723557516431,79.1775,147.49,147.35,24.71916207]
[1723557516432,46.38,147.46,147.35,21.95519478]
[1723557516628,46.38,147.46,147.35,12.8048]
[1723557517037,53.1616,147.46,147.35,12.8048]
[1723557517221,46.38,147.46,147.35,12.8048]
[1723557517832,46.38,147.46,147.36,9.15039478]
[1723557518020,79.1775,147.49,147.36,9.15039478]
[1723557518216,79.1775,147.49,147.37,20.0]
[1723557518416,46.38,147.45,147.33,20.0]
[1723557518619,46.38,147.45,147.31,21.93769478]
[1723557519753,46.38,147.45,147.32,0.50196]
[1723557520047,46.38,147.45,147.35,0.12549]
[1723557520427,46.38,147.45,147.35,20.12549]
[1723557520737,46.38,147.45,147.37,0.12549]
[1723557521319,46.38,147.45,147.37,20.12549]
[1723557521518,46.38,147.45,147.39,0.12549]
[1723557521748,46.38,147.48,147.39,20.12549]
[1723557521921,32.7975,147.49,147.41,0.12549]
[1723557522246,32.7975,147.49,147.41,20.47491699]
[1723557522425,32.7975,147.49,147.43,0.12549]
[1723557522626,46.38,147.45,147.33,5.23991737]
[1723557522827,46.38,147.45,147.34,20.0]
[1723557523136,46.38,147.45,147.34,40.0]
[1723557523927,79.1775,147.49,147.35,0.12549]
[1723557524127,85.9576,147.49,147.35,0.25098]
[1723557524335,79.1775,147.49,147.36,0.12549]
[1723557524541,79.1775,147.49,147.37,0.12549]
[1723557524847,79.1775,147.49,147.37,45.25098]
[1723557525075,79.1775,147.49,147.39,0.12549]
[1723557525252,45.0,147.48,147.39,0.25098]
[1723557525448,79.1775,147.49,147.41,0.12549]
[1723557525749,79.1775,147.49,147.41,0.25098]
[1723557525947,79.1775,147.49,147.42,0.12549]
[1723557526146,79.1775,147.49,147.43,0.12549]
[1723557526324,79.1775,147.49,147.43,0.37647]
[1723557526749,79.1775,147.49,147.44,0.12549]
[1723557526928,1.69565145,147.48,147.44,0.12549]
[1723557527122,79.1775,147.49,147.44,0.25098]
[1723557527335,80.87315183,147.49,147.45,0.25098]
[1723557527657,1.69565739,147.48,147.46,0.25098]
[1723557527852,1.69565739,147.48,147.46,0.12549]
[1723557528150,32.7975,147.49,147.46,0.12549]
[1723557528525,1.69561825,147.48,147.46,0.25098]
[1723557528939,1.69561825,147.48,147.46,0.12549]
[1723557529150,40.37561825,147.48,147.46,0.12549]
[1723557529456,40.37587033,147.48,147.3,18.25551737]
[1723557529749,38.68,147.41,147.33,30.0]
[1723557530725,38.68,147.41,147.34,20.0]
[1723557530943,38.68,147.41,147.31,20.0]
[1723557531853,38.68,147.43,147.32,9.15039478]
[1723557532048,38.68,147.43,147.33,20.0]
[1723557532258,32.7975,147.49,147.33,49.15039478]
[1723557532460,38.68,147.46,147.34,29.15039478]
[1723557532646,38.68,147.46,147.35,85.50196]
[1723557532833,38.68,147.46,147.36,9.15039478]
[1723557533034,38.68,147.46,147.37,65.50196]
[1723557533954,71.4775,147.49,147.37,65.50196]
[1723557533955,73.17326129,147.49,147.39,0.12549]
[1723557534264,71.4775,147.49,147.39,65.50196]
[1723557534759,71.4775,147.49,147.39,75.55678641]
[1723557535330,32.7975,147.49,147.39,85.50196]
[1723557535561,38.68,147.51,147.39,95.55730699]
[1723557536056,38.68,147.51,147.41,0.12549]
[1723557536258,38.68,147.51,147.41,65.50196]
[1723557536740,38.68,147.49,147.41,65.50196]
[1723557536953,1.69554728,147.48,147.41,65.50196]
[1723557537264,38.68,147.49,147.41,65.50196]
[1723557537964,38.68,147.47,147.41,65.0]
[1723557538253,38.68,147.47,147.41,20.0]
[1723557538428,38.68,147.47,147.39,30.05534699]
[1723557538743,38.68,147.47,147.4,45.0]
[1723557538943,38.68,147.45,147.38,23.00214699]
[1723557539153,38.68,147.45,147.36,10.05534699]
[1723557539339,38.68,147.45,147.37,10.05534699]
[1723557540348,38.68,147.45,147.38,20.0]
[1723557540665,1.6961758,147.44,147.38,20.0]
[1723557541334,38.68,147.45,147.38,29.15039478]
[1723557541538,38.68,147.49,147.4,10.18083699]
[1723557541757,38.68,147.49,147.42,0.12549]
[1723557541931,38.68,147.49,147.42,10.30632699]
[1723557542131,50.7813,147.51,147.44,0.12549]
[1723557542371,50.7813,147.51,147.44,45.25098]
[1723557542739,30.0913,147.53,147.46,0.12549]
[1723557542951,30.0913,147.53,147.46,0.25098]
[1723557543147,30.0913,147.53,147.48,0.12549]
[1723557543350,30.0913,147.53,147.48,0.25098]
[1723557543547,39.5214149,147.54,147.5,0.12549]
[1723557543765,39.5214149,147.54,147.5,0.25098]
[1723557543972,39.5214149,147.54,147.51,0.25098]
[1723557544174,39.5214149,147.54,147.52,0.12549]
[1723557544347,39.5214149,147.54,147.52,0.25098]
[1723557544546,1.69493802,147.53,147.47,10.03671342]
[1723557544746,38.68,147.52,147.48,0.37647]
[1723557544972,1.69536416,147.51,147.49,0.12549]
[1723557545347,38.68,147.52,147.49,0.12549]
[1723557546051,39.5214149,147.54,147.49,0.12549]
[1723557546573,39.5214149,147.54,147.48,0.25098]
[1723557546574,38.68,147.52,147.48,0.25098]
[1723557546763,38.68,147.5,147.48,0.12549]
[1723557546948,38.68,147.5,147.43,10.03671342]
[1723557547147,38.68,147.47,147.41,10.03671342]
[1723557547362,38.68,147.47,147.4,10.03671342]
[1723557547766,38.68,147.49,147.4,10.03684168]
[1723557547952,38.68,147.49,147.41,10.03684168]
[1723557548154,38.68,147.49,147.42,10.03684168]
[1723557548355,38.68,147.49,147.43,0.25098]
[1723557548550,38.68,147.49,147.45,0.12549]
[1723557548764,38.68,147.49,147.45,0.25098]
[1723557548960,38.68,147.49,147.46,0.12549]
[1723557549453,22.51354444,147.54,147.46,0.12549]
[1723557549454,38.68,147.51,147.46,0.12549]
[1723557550271,38.68,147.51,147.46,0.25098]
[1723557550474,38.68,147.51,147.47,0.12549]
[1723557550770,38.68,147.49,147.41,10.03684168]
[1723557550973,38.68,147.49,147.42,20.0]
[1723557551546,38.68,147.49,147.4,30.02536827]
[1723557551766,38.68,147.51,147.41,10.02536827]
[1723557552043,38.68,147.51,147.42,75.52732827]
[1723557552348,38.68,147.51,147.44,0.12549]
[1723557552543,38.68,147.51,147.44,0.50196]
[1723557553158,38.68,147.49,147.44,0.25098]
[1723557553564,1.69572467,147.48,147.44,0.25098]
[1723557553750,38.68,147.49,147.44,0.25098]